[Event "SixDays Budapest GM-B January 2024"]
[Site "Budapest"]
[Date "2024.01.31"]
[Round "7.1"]
[White "Dau Khuong Duy"]
[Black "Grover, Sahaj"]
[Result "0-1"]
[ECO "C78"]
[WhiteElo "2309"]
[BlackElo "2503"]
[Annotator "TA"]
[PlyCount "116"]
[EventDate "2024.01.26"]
[EventType "tourn"]
[EventCountry "HUN"]
[SourceTitle "playchess.com"]
[Source "ChessBase"]
[SourceQuality "1"]
[TimeControl "5400+30"]

{[%evp 35,116,18,22,8,16,0,0,0,0,0,0,0,0,0,0,0,0,-30,-27,-23,-20,-23,-15,-47,-35,-59,-35,-83,-75,-419,-436,-423,-449,-432,-447,-440,-435,-414,-423,-404,-377,-491,-501,-479,-479,-4133,-571,-564,-558,-532,-520,-1563,-1470,-2158,-2122,-4906,-1671,-1023,-648,-801,-824,-857,-905,-881,-682,-946,-935,-968,-943,-851,-827,-1111,-1029,-1250,-1164,-1364,-1383,-1836,-1630,-4134,-3600,-1676,-1882]} 1. e4 {[%emt 0:00:03]} e5 {[%emt 0:16:55]} 2. Nf3 {[%emt 0:00:20]} Nc6 {[%emt 0:00:05]} 3. Bb5 {[%emt 0:00:14]} a6 {[%emt 0:00:07]} 4. Ba4 {[%emt 0:00:16]} Nf6 {[%emt 0:06:19]} 5. O-O {[%emt 0:00:56]} Bc5 {[%emt 0:01:03]} 6. d3 {[%emt 0:05:50]} b5 {[%emt 0:00:38]} 7. Bb3 {[%emt 0:00:15]} d6 {[%emt 0:00:08]} 8. a4 {[%emt 0:01:29]} Bg4 {[%emt 0:02:03]} 9. c3 {[%emt 0:02:52]} O-O {[%emt 0:02:45]} 10. h3 {[%emt 0:01:50]} Bxf3 {[%emt 0:07:35]} 11. Qxf3 {[%emt 0:01:44]} Na5 {[%emt 0:01:59] C78: Ruy Lopez: Archangelsk and Möller Defences.} 12. Nd2 {[%emt 0:06:17]} b4 {[%emt 0:03:53]} 13. Ba2 {[%emt 0:22:19]} Rb8 14. Nc4 $146 {[%emt 0:02:27]} ({Predecessor:} 14. Qd1 h6 15. Kh1 Ba7 16. Nc4 Nxc4 17. Bxc4 c6 18. f4 d5 19. fxe5 Nxe4 20. dxe4 dxc4 {½-½ Churkin,M (2529)-Machycek,L (2406) EU-ch C69/final email 2015}) 14... bxc3 {[%emt 0:12:18]} 15. bxc3 Nb3 {[%emt 0:00:06]} 16. Rb1 {[%emt 0:04:19]} Nxc1 {[%emt 0:00:23]} 17. Rfxc1 c6 {[%emt 0:02:30]} 18. Rd1 {[%emt 0:06:58]} Rxb1 {[%emt 0:01:49]} 19. Bxb1 {[%emt 0:00:47]} Qb8 {[%emt 0:00:47]} 20. Bc2 {[%emt 0:02:33]} (20. d4 exd4 21. cxd4 Bxd4) 20... d5 {[%emt 0:02:14]} 21. exd5 {[%emt 0:01:28]} cxd5 {[%emt 0:01:26]} 22. Nxe5 {[%emt 0:07:45]} Bxf2+ {[%emt 0:00:06]} (22... Qxe5 $5 23. d4 $8 Bxd4 24. cxd4 Qc7 $11) 23. Qxf2 {[%emt 0:04:47]} Qxe5 {[%emt 0:08:35]} 24. Qd4 {[%emt 0:00:24]} Qe2 {[%emt 0:04:12]} 25. Qf2 $1 {[%emt 0:08:17]} Re8 {[%emt 0:01:58]} 26. Rb1 {[%emt 0:00:44]} Qe5 {[%emt 0:00:11]} 27. Qd4 {[%emt 0:00:55]} Qg5 {[%emt 0:01:12]} 28. Qf2 {[%emt 0:06:21]} h5 {[%emt 0:02:32]} 29. Kh1 {[%emt 0:02:17]} h4 {[%emt 0:03:53]} 30. Bd1 {[%emt 0:01:53]} Re3 (30... Qe3 {simplifies} 31. Qxe3 Rxe3 32. Kg1 g5) 31. Rb8+ (31. Bc2 $15) 31... Kh7 $17 {[%emt 0:00:54]} 32. Rb4 $2 {[%emt 0:00:52][%mdl 8192] [#]} (32. Bf3 $17 {is tougher.}) 32... Qe5 $1 $19 {[%emt 0:06:06]} (32... Rxd3 $2 33. Bc2 d4 (33... Qc1+ $2 34. Kh2 $18) 34. Bxd3+ $18) 33. Qxh4+ {[%emt 0:02:50]} Kg8 34. Qf4 {[%emt 0:00:05]} Re1+ {[%emt 0:00:22]} (34... Qxc3 35. Kh2 $11) 35. Kh2 {[%emt 0:00:30]} Qxf4+ {[%emt 0:00:02]} 36. Rxf4 {[%emt 0:00:06]} Rxd1 {[%emt 0:00:02]} 37. Rd4 {[%emt 0:00:00]} a5 {[%emt 0:00:38]} 38. g4 g5 39. h4 {[%emt 0:00:15]} gxh4 {[%emt 0:01:10]} 40. g5 {[%emt 0:00:04]} (40. Kh3 $142) 40... Nh5 {[%emt 0:00:20]} 41. Rxh4 {[%emt 0:00:50]} Rd2+ {[%emt 0:00:06]} 42. Kg1 {[%emt 0:01:02]} Ng3 {[%emt 0:00:05]} 43. g6 {[%emt 0:00:31]} (43. Rh6 $142) 43... f5 $19 {[%emt 0:00:13]} 44. c4 {[%emt 0:00:17]} d4 {[%emt 0:00:33]} 45. c5 {[%emt 0:00:32]} Kg7 {[%emt 0:00:07]} (45... Rxd3 $142 46. Kg2 Ne4) 46. c6 {[%emt 0:00:13]} Rc2 {[%emt 0:00:31]} 47. c7 {[%emt 0:00:04]} f4 {[%emt 0:00:48]} (47... Rxc7 $2 48. Rh7+ (48. Rxd4 Ne2+ 49. Kf2 Nxd4 50. Ke3 Rd7 51. Kf2 Re7 52. Kg2 Kxg6 53. Kh3 Kg5 54. Kg2 Kf4 55. Kf2 Rg7 56. Ke1 Ke3 57. Kf1 f4 58. Ke1 Rg1#) 48... Kxg6 49. Rxc7 $18) 48. Rh2 {[%emt 0:00:58]} Rc3 {[%emt 0:00:41]} (48... Rxc7 $2 49. Rh7+ Kxg6 50. Rxc7 $18) 49. Kf2 {[%emt 0:00:37]} Kxg6 {[%emt 0:00:05]} (49... Rxc7 $2 {too greedy.} 50. Rh7+ Kxg6 51. Rxc7 $18) 50. Kf3 {[%emt 0:00:15]} Kf5 {[%emt 0:01:28]} (50... Rxd3+ 51. Kxf4 Rc3 52. Rg2 Rxc7 53. Rxg3+ Kf6 54. Rg5 $11) 51. Rh8 {[%emt 0:00:33]} Rxc7 {[%emt 0:00:10]} ({Not} 51... Rxd3+ 52. Kg2 Rc3 (52... Rd2+ 53. Kh3 $11) 53. c8=Q+ Rxc8 54. Rxc8 $11) 52. Rf8+ {[%emt 0:00:33]} Ke5 {[%emt 0:00:06]} 53. Re8+ {[%emt 0:00:05]} Kd6 {[%emt 0:00:19]} 54. Rd8+ {[%emt 0:00:18]} Kc5 {[%emt 0:00:31]} 55. Rb8 {[%emt 0:00:07]} Re7 {[%emt 0:00:47]} 56. Rb5+ {[%emt 0:00:31]} Kc6 {[%emt 0:00:04]} 57. Rxa5 {[%emt 0:00:17]} Ne2 {[%emt 0:00:09]} 58. Ra6+ {[%emt 0:00:48]} Kc5 {[%emt 0:00:06]} 0-1

[Event "SixDays Budapest GM-B January 2024"]
[Site "Budapest"]
[Date "2024.01.31"]
[Round "7.2"]
[White "Pap, Misa"]
[Black "Pang, Tao"]
[Result "0-1"]
[ECO "C02"]
[WhiteElo "2422"]
[BlackElo "2430"]
[Annotator "TA"]
[PlyCount "76"]
[EventDate "2024.01.26"]
[EventType "tourn"]
[EventCountry "HUN"]
[SourceTitle "playchess.com"]
[Source "ChessBase"]
[SourceQuality "1"]
[TimeControl "5400+30"]

{[%evp 22,76,16,0,11,4,31,0,5,14,14,20,13,14,10,-27,-46,-65,-54,-104,-102,-128,-119,-144,-130,-135,-127,-147,-141,-165,-158,-213,-205,-230,-185,-239,-248,-327,-95,-258,-263,-331,-303,-313,-310,-320,-330,-374,-250,-256,-252,-277,-278,-258,-203,-273,-257]} 1. e4 {[%emt 0:04:50]} e6 {[%emt 0:00:08]} 2. d4 {[%emt 0:00:16]} d5 {[%emt 0:00:08]} 3. e5 {[%emt 0:00:45]} c5 {[%emt 0:00:20]} 4. c3 {[%emt 0:01:19]} Nc6 {[%emt 0:00:10]} 5. Nf3 {[%emt 0:00:06]} Bd7 {[%emt 0:00:18]} 6. a3 {[%emt 0:02:18]} Nge7 {[%emt 0:02:39]} 7. Bd3 {[%emt 0:04:35]} cxd4 {[%emt 0:02:26]} 8. cxd4 {[%emt 0:00:17]} Qb6 {[%emt 0:01:05]} 9. Bc2 {[%emt 0:02:18]} Nf5 {[%emt 0:01:37]} 10. Bxf5 {[%emt 0:00:18]} exf5 {[%emt 0:00:08]} 11. Nc3 {[%emt 0:00:06]} Be6 {[%emt 0:00:19]} 12. O-O {[%emt 0:04:13]} h6 {[%emt 0:03:10]} 13. Na4 {[%emt 0:02:44]} Qa6 {[%emt 0:02:09]} 14. Ne1 {[%emt 0:03:41]} Rc8 {[%emt 0:04:05][%cal Oc6d4] The position is equal.} 15. Be3 {[%emt 0:10:23]} f4 {[%emt 0:10:07]} 16. Bxf4 {[%emt 0:01:17]} Nxd4 $1 {[%emt 0:00:20]} 17. Qxd4 {[%emt 0:00:23]} Rc4 {[%emt 0:00:09]} 18. Qd2 {[%emt 0:00:26] [#] And now b3 would win.} Qxa4 {[%emt 0:03:14] White is weak on the light squares} 19. Bg3 {[%emt 0:04:09]} Be7 {[%emt 0:02:20]} 20. Rc1 {[%emt 0:06:16]} ({White should try} 20. f4 $15) 20... O-O $17 {[%emt 0:01:55] Black is more active.} 21. Nd3 {[%emt 0:11:06]} Rfc8 {[%emt 0:02:35]} 22. Rxc4 {[%emt 0:00:54]} dxc4 {[%emt 0:01:01]} 23. Nf4 {[%emt 0:02:01]} Rd8 {[%emt 0:02:23]} 24. Qe2 {[%emt 0:05:04]} Bf5 {[%emt 0:14:01] aiming for ...g5.} 25. e6 {[%emt 0:03:26] [#]} Qc2 $1 {[%emt 0:01:21]} 26. exf7+ {[%emt 0:01:35]} (26. Qxc2 $17 Bxc2 27. Re1) 26... Kxf7 $19 {[%emt 0:00:15] White must now prevent ...Qxe2.} 27. Qf3 {[%emt 0:09:36]} Qe4 {[%emt 0:02:13] Prevents Nd5. Threatens to win with ...Qxf3.} ({And not} 27... Qxb2 28. Nd5 Qc2 29. Ne3 $16 (29. Nxe7 Kxe7 30. Qxb7+ Rd7 $11)) 28. Qh5+ {[%emt 0:03:37]} (28. Qc3 {was worth a try.}) 28... Kg8 {[%emt 0:02:39]} 29. Rd1 {[%emt 0:01:29]} Rxd1+ {[%emt 0:01:09]} 30. Qxd1 {[%emt 0:00:08] This move loses the game for White.} Bf6 {[%emt 0:00:37] A strong pair of Bishops.} 31. h4 {[%emt 0:03:45]} Qb1 {[%emt 0:01:37]} 32. Qxb1 {[%emt 0:00:57]} Bxb1 {[%emt 0:00:08][%mdl 4096] Endgame. KBB-KBN} 33. Nd5 {[%emt 0:02:08]} Bxb2 {[%emt 0:00:25]} 34. Bd6 {[%emt 0:01:01]} Bd4 {[%emt 0:01:57] Strongly threatening ...c3.} 35. Bb4 {[%emt 0:00:36]} Be4 {[%emt 0:00:51]} 36. Nc3 {[%emt 0:00:16]} Bc6 {[%emt 0:00:22]} 37. Ne2 {[%emt 0:01:10]} Bb2 {[%emt 0:00:29]} 38. Kf1 {[%emt 0:00:37]} b6 {[%emt 0:02:16] Weighted Error Value: White=0.30/Black=0.25 (precise) .  Loses game:     	White=1     	---        Mistake:       	White=3     	---        Inaccurate:     	White=4     	Black=2      OK:         	White=5     	Black=8      Best:        	White=1     	Black=3      Strong:       	---       	Black=2} 0-1

[Event "SixDays Budapest GM-B January 2024"]
[Site "Budapest"]
[Date "2024.01.31"]
[Round "7.3"]
[White "Kaczur, Florian"]
[Black "Celik, Hasan Huseyin"]
[Result "1/2-1/2"]
[ECO "C15"]
[WhiteElo "2506"]
[BlackElo "2436"]
[Annotator "TA"]
[PlyCount "59"]
[EventDate "2024.01.26"]
[EventType "tourn"]
[EventCountry "HUN"]
[SourceTitle "playchess.com"]
[Source "ChessBase"]
[SourceQuality "1"]
[TimeControl "5400+30"]

{[%evp 11,59,25,24,10,14,12,6,4,58,53,56,45,51,31,25,37,35,33,44,4,25,12,23,4,0,-33,0,0,3,5,0,4,12,7,7,9,6,2,22,24,35,-5,0,-12,-6,-4,0,0,0,-16]} 1. e4 {[%emt 0:00:02]} e6 {[%emt 0:08:03]} 2. d4 {[%emt 0:00:11]} d5 {[%emt 0:00:05]} 3. Nc3 {[%emt 0:00:54]} Bb4 {[%emt 0:00:21]} 4. Nge2 {[%emt 0:01:03]} dxe4 {[%emt 0:03:22]} 5. a3 {[%emt 0:00:09]} Be7 {[%emt 0:01:12]} 6. Nxe4 {[%emt 0:00:07]} Nd7 {[%emt 0:00:12]} 7. g3 {[%emt 0:09:40]} Ngf6 {[%emt 0:02:57]} 8. Nxf6+ {[%emt 0:06:48]} Nxf6 {[%emt 0:00:40]} 9. Bg2 {[%emt 0:00:04] Inhibits Qd5.} c5 {[%emt 0:09:37]} (9... Rb8 $11) 10. O-O $14 {[%emt 0:01:16]} cxd4 {[%emt 0:00:59]} 11. Qxd4 {[%emt 0:02:33]} O-O {[%emt 0:00:59]} 12. c4 {[%emt 0:05:43]} Qxd4 {[%emt 0:06:24]} 13. Nxd4 {[%emt 0:00:19]} Rd8 {[%emt 0:00:08]} 14. Nf3 {[%emt 0:13:02]} Ne4 {[%emt 0:12:05][%cal Bf6e4,Be4d6,Bd6c4,Bc4b6,Bb6d5][%mdl 32]} 15. Be3 {[%emt 0:08:45]} Nd6 {[%emt 0:00:51]} 16. Bc5 {[%emt 0:04:21]} Bf6 {[%emt 0:03:18]} 17. Rad1 {[%emt 0:12:31]} Nxc4 {[%emt 0:01:40]} 18. Rxd8+ {[%emt 0:04:10]} Bxd8 {[%emt 0:00:19]} 19. Rd1 {[%emt 0:04:40]} Bf6 {[%emt 0:09:14]} ({Stronger than} 19... Nxb2 20. Rxd8#) 20. b3 {[%emt 0:00:30]} Nb6 {[%emt 0:01:09]} 21. Ne5 {[%emt 0:00:54]} Nd5 {[%emt 0:08:20]} 22. Ng4 {[%emt 0:00:28]} b6 {[%emt 0:01:40]} 23. Nxf6+ {[%emt 0:02:58]} gxf6 {[%emt 0:00:02]} 24. Be7 {[%emt 0:02:26]} Kg7 {[%emt 0:00:45]} 25. Rd4 {[%emt 0:10:45]} (25. Bxd5 exd5 26. Rxd5 Be6) 25... f5 {[%emt 0:01:49] Wards off Rg4+} 26. g4 {[%emt 0:04:27]} (26. Rxd5 $5 exd5 27. Bxd5 $11) 26... Kg6 {[%emt 0:01:46] The position is equal.} 27. Bxd5 {[%emt 0:01:15]} exd5 {[%emt 0:00:10]} 28. Rxd5 {[%emt 0:00:14]} Be6 {[%emt 0:02:40]} 29. gxf5+ {[%emt 0:00:34]} Bxf5 {[%emt 0:00:02]} 30. Rd8 {[%emt 0:00:26] Weighted Error Value: White=0.08 (flawless) /Black=0.08 (flawless) .  Mistake:       	---       	Black=1      Inaccurate:     	White=2     	Black=1      OK:         	White=13    	Black=9} 1/2-1/2

[Event "SixDays Budapest GM-B January 2024"]
[Site "Budapest"]
[Date "2024.01.31"]
[Round "7.4"]
[White "Gombocz, Ferenc Jr."]
[Black "Varga, Zoltan"]
[Result "1-0"]
[ECO "A47"]
[WhiteElo "2366"]
[BlackElo "2366"]
[Annotator "TA"]
[PlyCount "65"]
[EventDate "2024.01.26"]
[EventType "tourn"]
[EventCountry "HUN"]
[SourceTitle "playchess.com"]
[Source "ChessBase"]
[SourceQuality "1"]
[TimeControl "5400+30"]

{[%evp 9,65,-6,0,0,0,0,0,-15,0,0,17,10,24,23,30,35,25,0,0,-31,-43,-28,-27,-33,-28,-87,-85,-86,-68,-92,-81,-83,-77,-64,-70,-75,-91,-144,-143,-201,-199,-312,-57,-68,-29,-37,-8,-81,-38,-28,0,-12,0,-167,-158,-161,1114,1104]} 1. d4 {[%emt 0:00:05]} Nf6 {[%emt 0:10:01]} 2. Nf3 {[%emt 0:00:07]} b6 {[%emt 0:00:20]} 3. Bf4 {[%emt 0:01:05]} Bb7 {[%emt 0:00:20]} 4. Nbd2 {[%emt 0:00:52]} Nh5 {[%emt 0:01:12]} 5. Bg3 {[%emt 0:01:40]} Nxg3 {[%emt 0:06:02]} 6. hxg3 {[%emt 0:00:05]} g6 {[%emt 0:00:04]} 7. e4 {[%emt 0:01:34]} Bg7 {[%emt 0:00:09]} 8. c3 {[%emt 0:00:49] The position is equal.} e6 {[%emt 0:03:03]} 9. Bd3 {[%emt 0:04:07]} Qe7 {[%emt 0:00:44]} 10. Qe2 {[%emt 0:01:02]} a6 {[%emt 0:01:00]} 11. O-O-O {[%emt 0:00:56]} d6 {[%emt 0:01:06]} 12. e5 {[%emt 0:04:47]} Nd7 {[%emt 0:00:42]} 13. exd6 {[%emt 0:04:04]} cxd6 {[%emt 0:00:02]} 14. Be4 {[%emt 0:00:20]} Bxe4 {[%emt 0:05:00]} 15. Qxe4 {[%emt 0:00:22]} d5 {[%emt 0:00:06]} 16. Qe3 {[%emt 0:09:08]} b5 {[%emt 0:03:55]} 17. Ne5 {[%emt 0:01:31]} (17. g4 $11) 17... Nxe5 $17 {[%emt 0:02:15]} 18. dxe5 {[%emt 0:00:05]} b4 {[%emt 0:00:09]} 19. c4 {[%emt 0:02:08]} Rc8 {[%emt 0:10:17]} 20. b3 {[%emt 0:02:10]} f6 {[%emt 0:06:13]} 21. f4 {[%emt 0:06:19]} fxe5 {[%emt 0:03:56]} 22. fxe5 {[%emt 0:00:05]} O-O {[%emt 0:00:28]} 23. g4 {[%emt 0:00:19] Dodges Rf5} (23. Kb1 $142) 23... Qc5 {[%emt 0:05:58]} 24. Qh3 {[%emt 0:01:19]} (24. Qxc5 $17 Rxc5 25. Kb1 Bxe5 26. Nf3 dxc4 27. Nxe5 Rxe5 28. bxc4) 24... h6 $19 {[%emt 0:00:16]} (24... Bxe5 25. Qxh7#) 25. g5 {[%emt 0:00:12]} (25. Rhe1 {might work better.} Qd4 26. Kb1) 25... Rf5 $2 {[%emt 0:00:02]} (25... Bxe5 $2 {is the wrong capture.} 26. Qxe6+ (26. gxh6 $2 Qd4 $19) 26... Rf7 27. Rdf1 $18 (27. Qxe5 Re7 $18) (27. gxh6 dxc4 28. Qxg6+ Kh8 $16) (27. Rxh6 Bg7 $16) (27. Qxg6+ Kf8 $18)) (25... dxc4 $19 26. Qxe6+ Kh7 27. Nxc4 Qe3+ 28. Kb1 Qe4+ 29. Kc1 Rxc4+ 30. bxc4 (30. Qxc4 $2 Qxe5 $19) 30... Qe3+ (30... Bxe5 31. Rxh6+ Kg7 32. Rd7+) 31. Kb1 b3 32. Rxh6+ (32. Qxa6 Qxe5 33. Rxh6+ Kg8) 32... Bxh6 33. Qd7+ (33. gxh6 bxa2+ 34. Ka1 Qc3+ 35. Kxa2 Rf2+) 33... Kh8 (33... Bg7 $2 34. Qh3+ Qxh3 35. gxh3 $19)) 26. gxh6 $15 {[%emt 0:08:44]} Bxe5 {[%emt 0:02:54] [#] ...Qd4 is the strong threat.} 27. Qd3 {[%emt 0:00:15] White is weak on the dark squares} Kh7 {[%emt 0:21:38]} 28. Kb1 {[%emt 0:02:22]} (28. Rhe1 $11 {remains equal.}) 28... Bh8 {[%emt 0:03:00] White must now prevent ...Qf8.} 29. g4 {[%emt 0:06:23]} Rf7 {[%emt 0:03:17]} 30. Rdf1 {[%emt 0:15:42] Dancing on a razor blade.} Rcf8 {[%emt 0:00:39] Hoping for ...dxc4.} 31. Nf3 $2 {[%emt 0:00:30]} (31. Rxf7+ $11 {and White has nothing to worry.} Rxf7 32. Nf3) 31... dxc4 $19 {[%emt 0:03:00]} 32. bxc4 {[%emt 0:01:19] Rh5 would now be deadly.} Rf4 $4 {[%emt 0:01:18][%mdl 8192] [#]} (32... Bc3 $19 33. Rh3 (33. Rh5 $2 Rxf3 34. Rxf3 Qg1+ 35. Kc2 Qg2+ 36. Kd1 Qxf3+ $19) 33... Kh8) 33. Rh5 $1 {Weighted Error Value: White=0.34/Black=0.19 (very precise) .  Loses game:     	White=1     	---        Missed win:     	---       	Black=2      Mistake:       	White=5     	---        Inaccurate:     	White=1     	Black=3      OK:         	White=5     	Black=9      Best:        	White=1     	Black=4      Strong:       	White=1     	---} 1-0

[Event "SixDays Budapest GM-B January 2024"]
[Site "Budapest"]
[Date "2024.01.31"]
[Round "7.5"]
[White "Coenen, Michael"]
[Black "Lee, Alice"]
[Result "1/2-1/2"]
[ECO "C43"]
[WhiteElo "2330"]
[BlackElo "2379"]
[Annotator "TA"]
[PlyCount "22"]
[EventDate "2024.01.26"]
[EventType "tourn"]
[EventCountry "HUN"]
[SourceTitle "playchess.com"]
[Source "ChessBase"]
[SourceQuality "1"]
[TimeControl "5400+30"]

{[%evp 17,22,0,0,0,0,0,0]} 1. e4 {[%emt 0:00:03]} e5 {[%emt 0:00:35]} 2. Nf3 {[%emt 0:00:07]} Nf6 {[%emt 0:00:04]} 3. d4 {[%emt 0:00:07]} Nxe4 {[%emt 0:00:05]} 4. Bd3 {[%emt 0:00:08]} d5 {[%emt 0:00:07]} 5. Nxe5 {[%emt 0:00:05]} Nd7 {[%emt 0:00:02]} 6. Nxf7 {[%emt 0:00:41]} Kxf7 {[%emt 0:00:07]} 7. Qh5+ {[%emt 0:00:12]} Ke7 {[%emt 0:00:05]} 8. Qe2 {[%emt 0:00:06]} Kf7 {[%emt 0:00:04]} 9. Qh5+ {[%emt 0:00:41]} Ke7 {[%emt 0:00:06] [#] Hoping for ...Ndf6. The position is equal.} 10. Qe2 $1 {[%emt 0:00:29][%cal Of2f3]} Kf7 {[%emt 0:00:06] aiming for ...Ndf6.} 11. Qh5+ {[%emt 0:00:13]} Ke7 {Not much happened in this game.   OK:         	---       	Black=2      Best:        	White=1     	---} 1/2-1/2

[Event "SixDays Budapest GM-B January 2024"]
[Site "Budapest"]
[Date "2024.01.31"]
[Round "8.1"]
[White "Grover, Sahaj"]
[Black "Lee, Alice"]
[Result "1-0"]
[ECO "C43"]
[WhiteElo "2503"]
[BlackElo "2379"]
[Annotator "RC"]
[PlyCount "77"]
[EventDate "2024.01.26"]
[EventType "tourn"]
[EventCountry "HUN"]
[SourceTitle "playchess.com"]
[Source "ChessBase"]
[SourceQuality "1"]
[TimeControl "5400+30"]

1. e4 {[%emt 0:03:36]} e5 {[%emt 0:00:07]} 2. Nf3 {[%emt 0:00:05]} Nf6 {[%emt 0:00:07]} 3. d4 {[%emt 0:00:04]} Nxe4 {[%emt 0:00:09]} 4. Bd3 {[%emt 0:00:04]} d5 {[%emt 0:00:08]} 5. Nxe5 {[%emt 0:00:06]} Nd7 {[%emt 0:00:04]} 6. Nc3 {[%emt 0:00:05]} Nxc3 {[%emt 0:00:13]} 7. bxc3 {[%emt 0:00:04]} Nxe5 {[%emt 0:00:12]} 8. dxe5 {[%emt 0:00:05]} Bc5 {[%emt 0:00:07]} 9. O-O {[%emt 0:00:07]} O-O {[%emt 0:00:05]} 10. Rb1 {[%emt 0:00:05]} b6 {[%emt 0:00:19]} 11. Qf3 {[%emt 0:21:35]} Be6 {[%emt 0:02:03]} 12. Qg3 {[%emt 0:01:15]} Re8 {[%emt 0:13:16]} 13. Bg5 {[%emt 0:08:15]} Be7 {[%emt 0:03:35]} 14. Bh6 {[%emt 0:00:24]} Bf8 {[%emt 0:00:47]} 15. f4 {[%emt 0:11:11]} f5 {[%emt 0:03:39]} 16. exf6 {[%emt 0:00:22]} Qxf6 {[%emt 0:00:27]} 17. Bg5 {[%emt 0:00:06]} Qf7 {[%emt 0:02:26]} 18. f5 {[%emt 0:00:07]} Bd7 {[%emt 0:18:55]} 19. f6 {[%emt 0:01:58]} Bd6 {[%emt 0:00:57]} 20. Qh4 {[%emt 0:17:04]} g6 {[%emt 0:00:22]} 21. Rf3 {[%emt 0:06:30]} a5 {[%emt 0:10:59]} 22. Bf4 {[%emt 0:06:14]} Be5 {[%emt 0:04:07]} 23. Bh6 {[%emt 0:02:00]} Bd6 {[%emt 0:07:10]} 24. Bxg6 {[%emt 0:06:41]} hxg6 {[%emt 0:00:06]} 25. Bg7 {[%emt 0:00:03]} Qe6 {[%emt 0:00:18]} 26. Qh8+ {[%emt 0:00:10]} Kf7 {[%emt 0:00:01]} 27. Qh7 {[%emt 0:00:06]} Bc5+ {[%emt 0:08:16]} 28. Kh1 {[%emt 0:00:06]} Qe4 {[%emt 0:03:55]} 29. Bf8+ {[%emt 0:00:24]} Ke6 {[%emt 0:00:29]} 30. Qh3+ {[%emt 0:00:06]} Ke5 {[%emt 0:01:24]} 31. Qg3+ {[%emt 0:00:06]} Ke6 {[%emt 0:00:06]} 32. Bxc5 {[%emt 0:00:05]} bxc5 {[%emt 0:06:20]} 33. f7 {[%emt 0:00:07]} Reb8 {[%emt 0:03:00]} 34. Re1 {[%emt 0:00:28]} Ke7 {[%emt 0:00:24]} 35. Rxe4+ {[%emt 0:00:12]} dxe4 {[%emt 0:00:06]} 36. Qe5+ {[%emt 0:00:08]} Kf8 {[%emt 0:01:07]} 37. Qh8+ {[%emt 0:00:10]} Ke7 {[%emt 0:00:08]} 38. f8=Q+ {[%emt 0:00:05]} Rxf8 {[%emt 0:00:11]} 39. Qg7+ {[%emt 0:00:04]} 1-0